fUSD/lending_fUSD_20260627
["ID","MTS","AMOUNT","RATE_DAILY","PERIOD"]
[426502734,1782490233000,-303.05,0.00014198,2]
[426502724,1782490233000,-260.46929513,0.00014197,2]
[426502722,1782490233000,-307.46,0.00014024,2]
[426502714,1782490233000,-500.0,0.00013095,2]
[426502723,1782490233000,-181.20566585,0.00014197,2]
[426502713,1782490233000,-307.46,0.00013043,2]
[426502715,1782490233000,-216.48047229,0.00013147,2]
[426502716,1782490233000,-307.46,0.00013239,2]
[426502720,1782490233000,-307.46,0.00013827,2]
[426502729,1782490233000,-78870.31723574,0.00014198,2]
[426502718,1782490233000,-307.46,0.00013631,2]
[426502717,1782490233000,-307.46,0.00013435,2]
[426502721,1782490233000,-250.0,0.00014,2]
[426502725,1782490233000,-6830.8209,0.00014198,2]
[426502726,1782490233000,-3107.0956,0.00014198,2]
[426502728,1782490233000,-257.8752,0.00014198,2]
[426502727,1782490233000,-2405.07759233,0.00014198,2]
[426502719,1782490233000,-163.32489621,0.00013729,7]
[426502757,1782490237000,-3052.78329388,0.00014198,2]
[426502755,1782490237000,-5575.37946504,0.00014198,2]
[426502758,1782490237000,-645.31994166,0.00014198,2]
[426502759,1782490237000,-329.16,0.00014198,2]
[426502761,1782490237000,-949.25422182,0.00014198,2]
[426502762,1782490237000,-27166.41728155,0.00014198,2]
[426502760,1782490237000,-6469.6599999,0.00014198,2]
[426502764,1782490238000,-806.5,0.00014198,2]
[426502766,1782490238000,-614.0,0.00014198,2]
[426502763,1782490238000,-317.0,0.00014198,2]
[426502765,1782490238000,-975.13,0.00014198,2]
[426502769,1782490238000,-4502.00789222,0.00014198,2]
[426502767,1782490238000,-1980.44868095,0.00014198,2]
[426502787,1782490239000,-161971.77158276,0.00014198,2]
[426502785,1782490239000,-16175.21292884,0.00014198,2]
[426502786,1782490239000,-2249.99711719,0.00014198,2]
[426502784,1782490239000,-18583.27415517,0.00014198,2]
[426502837,1782490240000,-152.0,0.00014298,2]
[426502826,1782490240000,-292.0,0.00014298,2]
[426502836,1782490240000,-152.0,0.00014298,2]
[426502817,1782490240000,-152.0,0.00014298,2]
[426502822,1782490240000,-152.0,0.00014298,2]
[426502816,1782490240000,-162.19915258,0.00014298,2]
[426502818,1782490240000,-152.0,0.00014298,2]
[426502821,1782490240000,-292.0,0.00014298,2]
[426502820,1782490240000,-152.0,0.00014298,2]
[426502823,1782490240000,-152.0,0.00014298,2]
[426502824,1782490240000,-152.0,0.00014298,2]
[426502829,1782490240000,-152.0,0.00014298,2]
[426502848,1782490240000,-152.0,0.00014298,2]
[426502828,1782490240000,-296.0,0.00014298,2]
[426502825,1782490240000,-152.0,0.00014298,2]
[426502830,1782490240000,-152.0,0.00014298,2]
[426502831,1782490240000,-2500.0,0.00014298,2]
[426502833,1782490240000,-152.0,0.00014298,2]
[426502832,1782490240000,-152.0,0.00014298,2]
[426502835,1782490240000,-180.0,0.00014298,2]
[426502834,1782490240000,-152.0,0.00014298,2]
[426502843,1782490240000,-152.0,0.00014298,2]
[426502847,1782490240000,-240.0,0.00014298,2]
[426502842,1782490240000,-152.0,0.00014298,2]
[426502819,1782490240000,-152.0,0.00014298,2]
[426502827,1782490240000,-152.0,0.00014298,2]
[426502815,1782490240000,-152.0,0.00014298,2]
[426502803,1782490240000,-382.3792373,0.00014298,2]
[426502814,1782490240000,-152.0,0.00014298,2]
[426502788,1782490240000,-109600.76731095,0.00014198,2]
[426502789,1782490240000,-152.0,0.00014198,2]
[426502791,1782490240000,-240.0,0.00014198,2]
[426502792,1782490240000,-4186.6412,0.00014198,2]
[426502793,1782490240000,-152.0,0.00014198,2]
[426502797,1782490240000,-150.0,0.00014297,2]
[426502794,1782490240000,-152.0,0.00014198,2]
[426502795,1782490240000,-152.0,0.00014198,2]
[426502796,1782490240000,-307.46,0.0001422,2]
[426502790,1782490240000,-152.0,0.00014198,2]
[426502798,1782490240000,-17784.9894,0.00014298,2]
[426502800,1782490240000,-296.0,0.00014298,2]
[426502801,1782490240000,-382.3792373,0.00014298,2]
[426502810,1782490240000,-382.3792373,0.00014298,2]
[426502811,1782490240000,-152.0,0.00014298,2]
[426502840,1782490240000,-152.0,0.00014298,2]
[426502805,1782490240000,-382.3792373,0.00014298,2]
[426502802,1782490240000,-382.3792373,0.00014298,2]
[426502804,1782490240000,-382.3792373,0.00014298,2]
[426502799,1782490240000,-152.0,0.00014298,2]
[426502806,1782490240000,-382.3792373,0.00014298,2]
[426502808,1782490240000,-382.3792373,0.00014298,2]
[426502809,1782490240000,-382.3792373,0.00014298,2]
[426502807,1782490240000,-382.3792373,0.00014298,2]
[426502812,1782490240000,-152.0,0.00014298,2]
[426502813,1782490240000,-152.0,0.00014298,2]
[426502839,1782490240000,-152.0,0.00014298,2]
[426502838,1782490240000,-152.0,0.00014298,2]
[426502844,1782490240000,-152.0,0.00014298,2]
[426502887,1782490240000,-982.34,0.00015766,2]
[426502889,1782490240000,-171.88,0.00016059,2]
[426502876,1782490240000,-2000.0,0.00014398,2]
[426502888,1782490240000,-300.0,0.00016,2]
[426502878,1782490240000,-3063.07729898,0.000145,2]
[426502880,1782490240000,-500.0,0.00014572,2]
[426502879,1782490240000,-631.24999868,0.00014504,2]
[426502881,1782490240000,-982.34,0.00014666,2]
[426502883,1782490240000,-982.34,0.00015033,2]
[426502882,1782490240000,-184098.43301987,0.00015,2]
[426502884,1782490240000,-3886.03184674,0.00015052,2]
[426502885,1782490240000,-982.34,0.00015399,2]
[426502877,1782490240000,-307.46,0.00014416,2]
[426502886,1782490240000,-255.0,0.00015426,2]
[426502894,1782490240000,-329.83932335,0.00016438,2]
[426502899,1782490240000,-166.66,0.00019011,2]
[426502896,1782490240000,-166.66,0.00018061,2]
[426502898,1782490240000,-2154.60159533,0.00018651,2]
[426502893,1782490240000,-500.0,0.00016438,2]
[426502901,1782490240000,-216.0,0.00019711,2]
[426502892,1782490240000,-500.0,0.00016438,2]
[426502902,1782490240000,-166.66,0.00019962,2]
[426502891,1782490240000,-394.16434099,0.00016254,2]
[426502900,1782490240000,-3649.0,0.00019711,2]
[426502895,1782490240000,-433.0,0.00016641,2]
[426502849,1782490240000,-152.0,0.00014298,2]
[426502890,1782490240000,-982.34,0.00016133,2]
[426502874,1782490240000,-300.32781425,0.00014347,2]
[426502897,1782490240000,-394.16434099,0.0001821,2]
[426502872,1782490240000,-299.71733435,0.00014347,2]
[426502871,1782490240000,-300.0,0.00014347,2]
[426502850,1782490240000,-192.0,0.00014298,2]
[426502845,1782490240000,-192.0,0.00014298,2]
[426502846,1782490240000,-152.0,0.00014298,2]
[426502851,1782490240000,-500.0,0.00014298,2]
[426502852,1782490240000,-152.0,0.00014298,2]
[426502861,1782490240000,-600.0,0.00014347,2]
[426502863,1782490240000,-300.0,0.00014347,2]
[426502862,1782490240000,-600.0,0.00014347,2]
[426502853,1782490240000,-152.0,0.00014298,2]
[426502855,1782490240000,-296.0,0.00014298,2]
[426502856,1782490240000,-394.16434106,0.00014298,2]
[426502854,1782490240000,-152.0,0.00014298,2]
[426502841,1782490240000,-152.0,0.00014298,2]
[426502858,1782490240000,-250.0,0.00014347,2]
[426502857,1782490240000,-207.36642358,0.00014347,2]
[426502867,1782490240000,-300.0,0.00014347,2]
[426502866,1782490240000,-300.0,0.00014347,2]
[426502875,1782490240000,-250.0,0.00014347,2]
[426502873,1782490240000,-500.0,0.00014347,2]
[426502869,1782490240000,-250.0,0.00014347,2]
[426502868,1782490240000,-600.0,0.00014347,2]
[426502870,1782490240000,-300.0,0.00014347,2]
[426502864,1782490240000,-300.0,0.00014347,2]
[426502860,1782490240000,-600.0,0.00014347,2]
[426502859,1782490240000,-600.0,0.00014347,2]
[426502865,1782490240000,-300.0,0.00014347,2]
[426502958,1782490241000,-153.0,0.00028601,30]
[426502955,1782490241000,-152.0,0.00028601,30]
[426502961,1782490241000,-2766.06,0.0002876,7]
[426502952,1782490241000,-800.0,0.000285,2]
[426502948,1782490241000,-166.0,0.0002795,3]
[426502951,1782490241000,-800.0,0.00028,2]
[426502950,1782490241000,-800.0,0.00028,2]
[426502945,1782490241000,-151.0,0.0002795,3]
[426502949,1782490241000,-394.16434099,0.00027988,2]
[426502947,1782490241000,-151.0,0.0002795,3]
[426502954,1782490241000,-156.0,0.00028601,30]
[426502957,1782490241000,-156.0,0.00028601,30]
[426502973,1782490241000,-151.0,0.00029119,7]
[426502959,1782490241000,-3649.0,0.00028711,2]
[426502960,1782490241000,-301.41947031,0.00028741,14]
[426502963,1782490241000,-800.0,0.00029,2]
[426502974,1782490241000,-481.449365,0.00029119,7]
[426502966,1782490241000,-600.0,0.00029,2]
[426502962,1782490241000,-216.41,0.00029,7]
[426502964,1782490241000,-800.0,0.00029,2]
[426502965,1782490241000,-151.49,0.00029,7]
[426502967,1782490241000,-153.75535466,0.00029019,2]
[426502970,1782490241000,-651.05,0.0002906,7]
[426502971,1782490241000,-1279.83,0.0002906,7]
[426502937,1782490241000,-151.0,0.0002795,3]
[426502972,1782490241000,-164.20104984,0.0002911,2]
[426502956,1782490241000,-159.0,0.00028601,30]
[426502936,1782490241000,-151.0,0.0002795,3]
[426502924,1782490241000,-1895.13,0.00027397,10]
[426502927,1782490241000,-152.0,0.0002795,3]
[426502969,1782490241000,-172.46855632,0.0002902,2]
[426502903,1782490241000,-394.16434099,0.00020165,2]
[426502905,1782490241000,-5000.0,0.00021918,2]
[426502916,1782490241000,-394.16434099,0.00026033,2]
[426502918,1782490241000,-167.01,0.00027051,2]
[426502921,1782490241000,-500.0,0.00027178,2]
[426502904,1782490241000,-582.0,0.00021643,7]
[426502919,1782490241000,-2783.75,0.00027072,7]
[426502908,1782490241000,-3649.0,0.00022711,2]
[426502906,1782490241000,-394.16434099,0.00022121,2]
[426502909,1782490241000,-394.16434099,0.00024077,2]
[426502907,1782490241000,-171.88,0.00022583,2]
[426502923,1782490241000,-2274.15,0.00027397,10]
[426502910,1782490241000,-1000.0,0.00024658,2]
[426502914,1782490241000,-3649.0,0.00025711,2]
[426502922,1782490241000,-1500.0,0.00027397,2]
[426502935,1782490241000,-151.0,0.0002795,3]
[426502929,1782490241000,-151.0,0.0002795,3]
[426502925,1782490241000,-1579.27,0.00027397,10]
[426502934,1782490241000,-151.0,0.0002795,3]
[426502932,1782490241000,-151.0,0.0002795,3]
[426502928,1782490241000,-151.0,0.0002795,3]
[426502931,1782490241000,-151.0,0.0002795,3]
[426502926,1782490241000,-500.0,0.000275,7]
[426502933,1782490241000,-151.0,0.0002795,3]
[426502930,1782490241000,-151.0,0.0002795,3]
[426502912,1782490241000,-398.0,0.00025711,2]
[426502968,1782490241000,-759.03800396,0.00029019,2]
[426502953,1782490241000,-800.0,0.000285,2]
[426502975,1782490241000,-481.449365,0.00029119,7]
[426503006,1782490241000,-759.03800389,0.00029449,2]
[426503012,1782490241000,-35143.3281694,0.00029731,2]
[426503009,1782490241000,-152.0,0.00029601,30]
[426503008,1782490241000,-800.0,0.000295,2]
[426503005,1782490241000,-153.75535464,0.00029438,2]
[426503013,1782490241000,-156.692607,0.00029731,2]
[426503002,1782490241000,-151.0,0.00029158,3]
[426503019,1782490241000,-481.449365,0.00029731,7]
[426503014,1782490241000,-151.0,0.00029731,7]
[426503016,1782490241000,-481.449365,0.00029731,7]
[426503025,1782490241000,-18398.3890461,0.00029731,2]
[426503015,1782490241000,-366.1607088,0.00029731,2]
[426503017,1782490241000,-481.449365,0.00029731,7]
[426503020,1782490241000,-161.590149,0.00029731,7]
[426503022,1782490241000,-178.035352,0.00029731,7]
[426503024,1782490241000,-178.035352,0.00029731,7]
[426503018,1782490241000,-481.449365,0.00029731,7]
[426503021,1782490241000,-178.035352,0.00029731,7]
[426503023,1782490241000,-178.035352,0.00029731,7]
[426503028,1782490241000,-531.73967402,0.00029741,14]
[426503026,1782490241000,-48430.5030173,0.00029731,2]
[426503027,1782490241000,-10785.6953668,0.00029731,2]
[426503029,1782490241000,-795.45075108,0.00029741,14]
[426503030,1782490241000,-250.0,0.0002976,7]
[426503033,1782490241000,-153.75535464,0.00029856,2]
[426503031,1782490241000,-250.0,0.00029761,7]
[426503032,1782490241000,-153.7554,0.00029855,2]
[426503010,1782490241000,-153.0,0.00029601,30]
[426503011,1782490241000,-1086.9109331,0.00029731,2]
[426502977,1782490241000,-481.449365,0.00029119,7]
[426503004,1782490241000,-191782.0,0.000294,2]
[426503007,1782490241000,-800.0,0.000295,2]
[426502987,1782490241000,-151.0,0.0002912,7]
[426502976,1782490241000,-481.449365,0.00029119,7]
[426502981,1782490241000,-196.902613,0.0002912,7]
[426502979,1782490241000,-446572.45741433,0.00029119,2]
[426502983,1782490241000,-151.0,0.0002912,7]
[426502978,1782490241000,-151.0,0.00029119,7]
[426502986,1782490241000,-151.0,0.0002912,7]
[426502984,1782490241000,-196.902613,0.0002912,7]
[426502985,1782490241000,-151.0,0.0002912,7]
[426502980,1782490241000,-196.902613,0.0002912,7]
[426502999,1782490241000,-151.0,0.00029158,3]
[426503000,1782490241000,-151.0,0.00029158,3]
[426502982,1782490241000,-196.902613,0.0002912,7]
[426502995,1782490241000,-151.0,0.00029158,3]
[426502989,1782490241000,-178.035352,0.0002912,7]
[426503001,1782490241000,-151.0,0.00029158,3]
[426502997,1782490241000,-151.0,0.00029158,3]
[426502996,1782490241000,-151.0,0.00029158,3]
[426502994,1782490241000,-153.41577836,0.00029158,3]
[426502993,1782490241000,-190902.0,0.0002912,20]
[426502998,1782490241000,-151.0,0.00029158,3]
[426503003,1782490241000,-172.0,0.00029158,3]
[426503034,1782490241000,-500.0,0.00029863,60]
[426502988,1782490241000,-151.0,0.0002912,7]
[426502991,1782490241000,-178.035352,0.0002912,7]
[426502992,1782490241000,-178.035352,0.0002912,7]
[426502990,1782490241000,-178.035352,0.0002912,7]
[426503074,1782490242000,-178.035352,0.00029938,7]
[426503079,1782490242000,-151.0,0.00029947,7]
[426503086,1782490242000,-151.0,0.00029947,7]
[426503076,1782490242000,-394.16434099,0.00029944,2]
[426503070,1782490242000,-481.449365,0.00029938,7]
[426503065,1782490242000,-1241.43,0.00029932,7]
[426503069,1782490242000,-481.449365,0.00029938,7]
[426503068,1782490242000,-481.449365,0.00029938,7]
[426503067,1782490242000,-481.449365,0.00029938,7]
[426503066,1782490242000,-151.0,0.00029938,7]
[426503078,1782490242000,-151.0,0.00029947,7]
[426503071,1782490242000,-178.035352,0.00029938,7]
[426503077,1782490242000,-151.0,0.00029947,7]
[426503090,1782490242000,-151.0,0.00029947,7]
[426503075,1782490242000,-25000.0,0.00029938,10]
[426503080,1782490242000,-151.0,0.00029947,7]
[426503085,1782490242000,-151.0,0.00029947,7]
[426503083,1782490242000,-151.0,0.00029947,7]
[426503082,1782490242000,-251.085647,0.00029947,2]
[426503084,1782490242000,-151.0,0.00029947,7]
[426503088,1782490242000,-151.0,0.00029947,7]
[426503087,1782490242000,-151.0,0.00029947,7]
[426503098,1782490242000,-196.902613,0.00029947,7]
[426503101,1782490242000,-196.902613,0.00029947,7]
[426503100,1782490242000,-196.902613,0.00029947,7]
[426503089,1782490242000,-151.0,0.00029947,7]
[426503073,1782490242000,-178.035352,0.00029938,7]
[426503081,1782490242000,-151.0,0.00029947,2]
[426503061,1782490242000,-151.0,0.00029932,7]
[426503059,1782490242000,-151.0,0.00029932,7]
[426503063,1782490242000,-151.0,0.00029932,7]
[426503095,1782490242000,-196.902613,0.00029947,7]
[426503036,1782490242000,-722.675,0.00029912,24]
[426503038,1782490242000,-151.0,0.00029931,7]
[426503048,1782490242000,-196.902613,0.00029931,7]
[426503037,1782490242000,-151.0,0.00029931,7]
[426503049,1782490242000,-151.0,0.00029931,7]
[426503039,1782490242000,-151.0,0.00029931,7]
[426503041,1782490242000,-151.0,0.00029931,7]
[426503042,1782490242000,-151.0,0.00029931,7]
[426503045,1782490242000,-196.902613,0.00029931,7]
[426503047,1782490242000,-217.223422,0.00029931,7]
[426503043,1782490242000,-151.0,0.00029931,7]
[426503046,1782490242000,-196.902613,0.00029931,7]
[426503040,1782490242000,-151.0,0.00029931,7]
[426503044,1782490242000,-196.902613,0.00029931,7]
[426503051,1782490242000,-157995.52885721,0.00029932,2]
[426503052,1782490242000,-1916.937852,0.00029932,2]
[426503055,1782490242000,-151.0,0.00029932,7]
[426503058,1782490242000,-151.0,0.00029932,7]
[426503050,1782490242000,-170.253402,0.00029931,7]
[426503053,1782490242000,-151.0,0.00029932,7]
[426503054,1782490242000,-151.0,0.00029932,7]
[426503056,1782490242000,-151.0,0.00029932,7]
[426503057,1782490242000,-151.0,0.00029932,7]
[426503060,1782490242000,-151.0,0.00029932,7]
[426503062,1782490242000,-151.0,0.00029932,7]
[426503072,1782490242000,-178.035352,0.00029938,7]
[426503064,1782490242000,-631.52,0.00029932,7]
[426503035,1782490242000,-759.03800389,0.00029878,2]
[426503093,1782490242000,-151.0,0.00029947,7]
[426503092,1782490242000,-151.0,0.00029947,7]
[426503152,1782490242000,-151.0,0.00029991,7]
[426503155,1782490242000,-151.0,0.00029991,7]
[426503150,1782490242000,-151.0,0.00029991,7]
[426503151,1782490242000,-151.0,0.00029991,7]
[426503154,1782490242000,-151.0,0.00029991,7]
[426503153,1782490242000,-151.0,0.00029991,7]
[426503157,1782490242000,-151.0,0.00029991,7]
[426503159,1782490242000,-25000.0,0.00029991,10]
[426503161,1782490242000,-50000.0,0.0003,3]
[426503164,1782490242000,-9023.8,0.0003,2]
[426503167,1782490242000,-10000.0,0.0003,2]
[426503163,1782490242000,-12483.93476343,0.0003,10]
[426503158,1782490242000,-151.0,0.00029991,7]
[426503160,1782490242000,-426.14391834,0.00029999,10]
[426503162,1782490242000,-25000.0,0.0003,10]
[426503166,1782490242000,-1201.68,0.0003,7]
[426503168,1782490242000,-25000.0,0.0003,2]
[426503169,1782490242000,-12500.0,0.0003,2]
[426503165,1782490242000,-15954.01,0.0003,2]
[426503171,1782490242000,-22500.0,0.0003,2]
[426503174,1782490242000,-151.0,0.0003,7]
[426503172,1782490242000,-2500.0,0.0003,2]
[426503170,1782490242000,-12500.0,0.0003,2]
[426503173,1782490242000,-151.0,0.0003,7]
[426503177,1782490242000,-153.375819,0.0003,7]
[426503094,1782490242000,-151.0,0.00029947,7]
[426503175,1782490242000,-151.0,0.0003,7]
[426503149,1782490242000,-151.0,0.00029991,7]
[426503148,1782490242000,-151.0,0.00029991,7]
[426503176,1782490242000,-151.0,0.0003,7]
[426503145,1782490242000,-25000.0,0.00029982,10]
[426503147,1782490242000,-151.0,0.00029991,7]
[426503102,1782490242000,-151.0,0.00029947,7]
[426503103,1782490242000,-151.0,0.00029947,7]
[426503105,1782490242000,-25000.0,0.00029956,10]
[426503106,1782490242000,-25000.0,0.00029965,10]
[426503107,1782490242000,-25000.0,0.00029974,10]
[426503109,1782490242000,-151.0,0.00029982,7]
[426503104,1782490242000,-25000.0,0.00029947,10]
[426503110,1782490242000,-151.0,0.00029982,7]
[426503108,1782490242000,-151.0,0.00029974,7]
[426503111,1782490242000,-151.0,0.00029982,7]
[426503114,1782490242000,-196.902613,0.00029982,7]
[426503117,1782490242000,-196.902613,0.00029982,7]
[426503119,1782490242000,-196.902613,0.00029982,7]
[426503091,1782490242000,-151.0,0.00029947,7]
[426503122,1782490242000,-196.902613,0.00029982,7]
[426503156,1782490242000,-151.0,0.00029991,7]
[426503146,1782490242000,-151.0,0.00029991,7]
[426503143,1782490242000,-178.035352,0.00029982,7]
[426503141,1782490242000,-178.035352,0.00029982,7]
[426503123,1782490242000,-299.43584,0.00029982,7]
[426503139,1782490242000,-178.035352,0.00029982,7]
[426503140,1782490242000,-178.035352,0.00029982,7]
[426503135,1782490242000,-481.449365,0.00029982,7]
[426503133,1782490242000,-481.449365,0.00029982,7]
[426503131,1782490242000,-481.449365,0.00029982,7]
[426503128,1782490242000,-151.0,0.00029982,7]
[426503126,1782490242000,-151.0,0.00029982,7]
[426503138,1782490242000,-481.449365,0.00029982,7]
[426503224,1782490243000,-12500.0,0.00030125,2]
[426503227,1782490243000,-500.0,0.00030136,2]
[426503222,1782490243000,-151.0,0.000301,7]
[426503229,1782490243000,-500.0,0.00030136,2]
[426503214,1782490243000,-5528.0,0.0003,3]
[426503221,1782490243000,-151.0,0.000301,7]
[426503220,1782490243000,-233326.55509723,0.000301,7]
[426503219,1782490243000,-190902.0,0.0003008,20]
[426503215,1782490243000,-753.18669507,0.0003,2]
[426503213,1782490243000,-178.035348,0.0003,7]
[426503225,1782490243000,-477.5,0.00030125,2]
[426503228,1782490243000,-500.0,0.00030136,2]
[426503245,1782490243000,-500.0,0.00030136,2]
[426503231,1782490243000,-500.0,0.00030136,2]
[426503232,1782490243000,-500.0,0.00030136,2]
[426503234,1782490243000,-500.0,0.00030136,2]
[426503246,1782490243000,-500.0,0.00030136,2]
[426503236,1782490243000,-500.0,0.00030136,2]
[426503237,1782490243000,-500.0,0.00030136,2]
[426503247,1782490243000,-500.0,0.00030136,2]
[426503238,1782490243000,-500.0,0.00030136,2]
[426503239,1782490243000,-500.0,0.00030136,2]
[426503240,1782490243000,-500.0,0.00030136,2]
[426503244,1782490243000,-500.0,0.00030136,2]
[426503217,1782490243000,-200.0,0.00030065,2]
[426503226,1782490243000,-500.0,0.00030136,2]
[426503210,1782490243000,-178.035352,0.0003,7]
[426503200,1782490243000,-196.902613,0.0003,7]
[426503212,1782490243000,-178.035352,0.0003,7]
[426503241,1782490243000,-500.0,0.00030136,2]
[426503180,1782490243000,-151.0,0.0003,7]
[426503182,1782490243000,-151.0,0.0003,7]
[426503178,1782490243000,-800.0,0.0003,2]
[426503184,1782490243000,-800.0,0.0003,2]
[426503192,1782490243000,-290.592542,0.0003,7]
[426503190,1782490243000,-151.0,0.0003,7]
[426503191,1782490243000,-151.0,0.0003,7]
[426503194,1782490243000,-151.0,0.0003,7]
[426503193,1782490243000,-158.460623,0.0003,7]
[426503195,1782490243000,-207.173417,0.0003,7]
[426503198,1782490243000,-232.214391,0.0003,7]
[426503218,1782490243000,-151.0,0.0003008,7]
[426503196,1782490243000,-151.0,0.0003,7]
[426503197,1782490243000,-151.0,0.0003,7]
[426503206,1782490243000,-481.449365,0.0003,7]
[426503207,1782490243000,-481.449365,0.0003,7]
[426503203,1782490243000,-151.0,0.0003,7]
[426503201,1782490243000,-196.902613,0.0003,7]
[426503205,1782490243000,-1000.099999,0.0003,30]
[426503202,1782490243000,-196.902609,0.0003,7]
[426503204,1782490243000,-151.0,0.0003,7]
[426503209,1782490243000,-481.449369,0.0003,7]
[426503208,1782490243000,-481.449365,0.0003,7]
[426503216,1782490243000,-171.75841341,0.0003,5]
[426503211,1782490243000,-178.035352,0.0003,7]
[426503199,1782490243000,-196.902613,0.0003,7]
[426503243,1782490243000,-500.0,0.00030136,2]
[426503223,1782490243000,-151.0,0.000301,7]
[426503248,1782490243000,-610.380401,0.00030136,2]
[426503287,1782490243000,-2500.0,0.000305,2]
[426503285,1782490243000,-12500.0,0.000305,2]
[426503282,1782490243000,-702.5728794,0.0003047,2]
[426503293,1782490243000,-196.79872808,0.000305,8]
[426503283,1782490243000,-25000.0,0.000305,2]
[426503292,1782490243000,-800.0,0.000305,2]
[426503289,1782490243000,-800.0,0.000305,2]
[426503295,1782490243000,-200.0,0.000305,3]
[426503297,1782490243000,-150.0,0.00030502,30]
[426503301,1782490243000,-5528.0,0.000306,5]
[426503299,1782490243000,-184.87727102,0.00030538,9]
[426503305,1782490243000,-153.0,0.00030601,30]
[426503274,1782490243000,-10000.0,0.00030333,2]
[426503307,1782490243000,-300.0,0.00030603,30]
[426503317,1782490243000,-863.01,0.0003075,2]
[426503316,1782490243000,-25000.0,0.0003075,2]
[426503309,1782490243000,-10000.0,0.00030667,2]
[426503311,1782490243000,-184.87727102,0.00030682,10]
[426503313,1782490243000,-12728.83503952,0.000307,8]
[426503315,1782490243000,-331.95,0.00030746,30]
[426503314,1782490243000,-759.03800389,0.00030737,2]
[426503318,1782490243000,-2500.0,0.0003075,2]
[426503321,1782490243000,-355.18,0.00030755,30]
[426503319,1782490243000,-1052.11,0.00030755,30]
[426503323,1782490243000,-153.02,0.00030755,30]
[426503320,1782490243000,-202.17,0.00030755,30]
[426503303,1782490243000,-152.0,0.00030601,30]
[426503276,1782490243000,-184.87727102,0.00030415,8]
[426503242,1782490243000,-500.0,0.00030136,2]
[426503278,1782490243000,-186.392361,0.00030441,30]
[426503252,1782490243000,-184.87727102,0.00030148,3]
[426503250,1782490243000,-184.87727151,0.00030137,2]
[426503255,1782490243000,-151.0,0.00030216,7]
[426503259,1782490243000,-1076.2686,0.00030241,28]
[426503260,1782490243000,-25000.0,0.0003025,2]
[426503249,1782490243000,-500.0,0.00030136,14]
[426503258,1782490243000,-184.87727102,0.00030237,6]
[426503251,1782490243000,-186.392361,0.00030137,30]
[426503256,1782490243000,-202.07020222,0.00030216,7]
[426503257,1782490243000,-182.91997934,0.00030216,7]
[426503254,1782490243000,-151.0,0.00030216,7]
[426503272,1782490243000,-184.87727102,0.00030315,7]
[426503253,1782490243000,-184.87727102,0.00030181,4]
[426503262,1782490243000,-2500.0,0.0003025,2]
[426503264,1782490243000,-151.0,0.0003025,7]
[426503271,1782490243000,-759.03800389,0.00030308,2]
[426503269,1782490243000,-151.0,0.0003025,7]
[426503270,1782490243000,-255.0,0.00030301,2]
[426503322,1782490243000,-285.92,0.00030755,30]
[426503268,1782490243000,-151.0,0.0003025,7]